bitfinex-derivatives/quotes_ETHF0:USTF0_20241207
["timestamp","ask_amount","ask_price","bid_price","bid_amount"]
[1733535751176,0.4035,3987.6,3987.2,0.17528]
[1733535752079,0.17527,3987.5,3987.2,0.17528]
[1733535752473,0.17527,3987.5,3987.0,0.25047088]
[1733535752777,0.4035,3987.6,3987.0,0.25047088]
[1733535752973,0.17528,3987.4,3987.0,0.25047088]
[1733535753173,0.17528,3987.4,3987.2,0.17528]
[1733535753369,0.17528,3987.4,3987.1,0.17529]
[1733535753671,0.17528,3987.4,3987.0,0.25047088]
[1733535753876,0.17528,3987.4,3987.2,0.17528]
[1733535754766,0.17528,3987.4,3987.0,0.25047088]
[1733535754967,0.17528,3987.4,3987.1,0.17529]
[1733535756078,0.17528,3987.3,3987.1,0.17529]
[1733535756477,0.4035,3987.6,3987.0,0.25047088]
[1733535756678,0.17529,3987.2,3987.0,0.42576088]
[1733535756880,0.4035,3987.6,3987.0,0.25047088]
[1733535757070,0.17528,3987.3,3987.1,0.17529]
[1733535757674,0.17528,3987.4,3987.1,0.17529]
[1733535758078,0.4035,3987.6,3987.0,0.25047088]
[1733535758275,1.95877215,3988.1,3987.2,3.2078]
[1733535758473,0.4025,3988.0,3987.3,0.3883]
[1733535758681,0.17526,3987.9,3987.7,0.17526]
[1733535759068,0.17525,3987.9,3987.7,3.38306]
[1733535759270,3.2078,3988.4,3988.3,0.17524]
[1733535759583,0.17521,3989.0,3988.4,0.17523]
[1733535759774,0.17522,3988.7,3988.4,0.17523]
[1733535760480,0.17522,3988.6,3988.3,0.3866]
[1733535760672,0.17522,3988.7,3988.5,0.17523]
[1733535760879,0.17521,3988.8,3988.4,0.17523]
[1733535761074,1.95877215,3988.9,3988.4,0.17523]
[1733535761283,1.95877215,3988.9,3988.3,0.3866]
[1733535761477,0.17523,3988.4,3988.3,0.3866]
[1733535764882,1.95877215,3988.9,3988.3,0.3866]
[1733535765083,2.34067215,3988.9,3988.4,0.17523]
[1733535765380,0.17522,3988.7,3988.5,0.17523]
[1733535765776,0.17522,3988.7,3988.6,0.3775]
[1733535766286,0.3819,3988.9,3988.6,0.3775]
[1733535766581,3.2078,3989.1,3989.0,0.17521]
[1733535766980,3.2078,3989.1,3988.9,0.17521]
[1733535767282,3.2078,3989.1,3988.6,0.3775]
[1733535767584,0.17521,3988.9,3988.7,0.17521]
[1733535768082,0.17521,3989.0,3988.8,0.17521]
[1733535768382,3.2078,3989.1,3988.7,0.708]
[1733535768586,3.2078,3989.1,3988.9,0.17521]
[1733535768587,0.1752,3989.1,3988.9,0.17521]
[1733535769591,2.94835274,3989.6,3988.7,0.91232864]
[1733535769784,0.1752,3989.2,3988.7,0.91232864]
[1733535769990,0.404,3989.5,3988.9,0.17521]
[1733535770388,0.1752,3989.2,3988.9,0.17521]
[1733535770583,0.404,3989.5,3988.7,0.91232864]
[1733535770890,0.17519,3989.3,3989.1,0.1752]
[1733535771087,0.17519,3989.3,3989.2,0.3987]
[1733535771893,0.17519,3989.4,3989.2,0.57389]
[1733535772491,0.404,3989.5,3989.3,0.17519]
[1733535772886,0.404,3989.5,3989.2,0.3987]
[1733535772887,0.17519,3989.4,3989.2,0.57389]
[1733535773096,0.17519,3989.4,3989.2,0.3987]
[1733535773286,0.17519,3989.4,3989.2,0.5739]
[1733535773484,3.2078,3989.8,3989.2,0.3987]
[1733535773680,3.2078,3989.8,3989.3,0.708]
[1733535773884,0.17518,3989.5,3989.4,0.3772]
[1733535776992,0.17522,3988.6,3988.4,3.38303]
[1733535777194,1.95877215,3989.0,3988.4,3.45824391]
[1733535777395,0.96771,3988.9,3988.6,0.17522]
[1733535777586,0.7925,3988.9,3988.7,0.17522]
[1733535777791,0.39,3988.9,3988.8,0.17521]
[1733535782004,0.39,3988.9,3988.5,0.17523]
[1733535782195,0.39,3988.9,3988.4,3.45824391]
[1733535782395,0.56521,3988.9,3988.8,0.17521]
[1733535782594,0.39,3988.9,3988.8,0.17521]
[1733535783205,0.56521,3988.9,3988.7,0.17522]
[1733535783401,0.39,3988.9,3988.4,3.45824391]
[1733535783601,0.39,3988.9,3988.8,0.17521]
[1733535784299,0.1752,3989.3,3989.1,0.1752]
[1733535784498,0.1752,3989.3,3988.5,0.43808]
[1733535784499,0.57769,3989.4,3989.2,0.57099]
[1733535784700,0.57769,3989.4,3989.3,0.17519]
[1733535784895,0.57769,3989.4,3989.2,0.571]
[1733535785201,0.17519,3989.4,3989.2,0.571]
[1733535785400,0.17519,3989.4,3989.2,0.3958]
[1733535785598,0.17519,3989.4,3989.3,0.17519]
[1733535785804,0.17519,3989.4,3989.2,0.3958]
[1733535785805,0.4024,3989.5,3989.2,0.3958]
[1733535786199,0.57759,3989.5,3989.3,0.17519]
[1733535786500,3.2078,3990.5,3989.4,3.2078]
[1733535786702,0.17518,3989.6,3989.5,0.708]
[1733535791308,3.2078,3990.1,3989.5,0.88318]
[1733535791616,0.17518,3989.6,3989.5,0.708]
[1733535794016,3.2078,3990.1,3989.5,0.88318]
[1733535794314,3.2078,3990.1,3989.5,0.708]
[1733535794315,0.17518,3989.6,3989.5,0.708]
[1733535794613,0.17518,3989.6,3989.4,0.17519]
[1733535794817,3.2078,3990.1,3989.3,0.708]
[1733535795011,3.2078,3990.1,3989.5,0.17518]
[1733535795206,0.17518,3989.6,3989.5,0.17518]
[1733535798215,3.2078,3990.1,3989.3,3.9158]
[1733535798418,3.2078,3990.1,3989.5,0.17518]
[1733535798419,0.17518,3989.6,3989.5,0.17518]
[1733535798916,0.17518,3989.7,3989.6,0.17518]
[1733535799115,0.17518,3989.7,3989.5,0.17518]
[1733535799321,0.4083,3989.6,3989.5,0.17518]
[1733535799624,0.58348,3989.6,3989.5,0.17518]
[1733535800321,0.4083,3989.6,3989.5,0.17518]
[1733535801022,0.58348,3989.6,3989.5,0.17518]
[1733535802629,0.4083,3989.6,3989.5,0.17518]
[1733535803726,0.58348,3989.6,3989.5,0.17518]
[1733535804028,0.4083,3989.6,3989.5,0.17518]
[1733535811230,0.4033,3990.2,3989.5,0.90381914]
[1733535811528,2.9504959,3990.7,3990.1,4.11161914]
[1733535811734,0.4104,3990.8,3990.7,0.17513]
[1733535812433,0.383,3991.3,3991.2,0.17511]
[1733535812733,0.7934,3991.3,3991.2,0.17511]
[1733535812934,2.9504959,3991.8,3991.0,3.2078]
[1733535813239,2.9504959,3991.8,3991.5,0.1751]
[1733535813240,0.4104,3991.6,3991.5,0.1751]
[1733535813732,0.4104,3991.6,3990.5,3.2078]
[1733535813733,0.17514,3990.6,3990.5,3.2078]
[1733535813932,3.2078,3991.0,3990.1,3.9158]
[1733535814133,0.4163,3990.9,3990.2,0.708]
[1733535814333,0.17513,3990.8,3990.5,0.17514]
[1733535815233,0.17513,3990.8,3990.2,0.708]
[1733535815430,0.17513,3990.8,3990.6,0.17514]
[1733535816329,2.9504959,3990.7,3990.5,0.17514]
[1733535817229,3.1256259,3990.7,3990.5,0.17514]
[1733535817825,2.9504959,3990.7,3990.6,0.17514]
[1733535818033,2.9504959,3990.7,3990.4,0.25033043]
[1733535818340,3.1256259,3990.7,3990.5,0.17514]
[1733535818736,2.9504959,3990.7,3990.6,0.17514]
[1733535818943,3.1256259,3990.7,3990.5,0.17514]
[1733535819333,2.9504959,3990.7,3990.4,0.25033043]
[1733535819543,0.17514,3990.6,3990.4,0.42547043]
[1733535821541,0.17514,3990.5,3990.4,0.25033043]
[1733535822542,2.9504959,3990.7,3990.4,0.25033043]
[1733535823039,0.17514,3990.5,3990.4,0.25033043]
[1733535823340,0.17514,3990.5,3990.4,0.42548043]
[1733535824133,0.17514,3990.5,3990.4,0.25033043]
[1733535825040,3.2078,3990.6,3989.6,0.25033043]
[1733535825237,0.17519,3989.4,3989.3,3.2078]
[1733535826042,0.4024,3990.0,3989.3,3.2078]
[1733535826239,0.4024,3990.0,3989.3,3.6031]
[1733535826439,0.17517,3989.9,3989.7,0.17517]
[1733535826643,0.4024,3990.0,3989.8,0.59267]
[1733535826943,0.57756,3990.0,3989.9,0.3953]
[1733535827146,0.4024,3990.0,3989.9,0.3953]
[1733535827443,0.57756,3990.0,3989.9,0.3953]
[1733535828340,0.17517,3989.8,3989.7,0.708]
[1733535831655,0.17517,3989.8,3989.5,0.17518]
[1733535831656,0.17518,3989.7,3989.5,0.17518]
[1733535831952,0.4024,3990.0,3989.3,0.95834985]
[1733535832149,0.4024,3990.0,3989.4,0.17519]
[1733535832348,0.4024,3990.0,3989.3,0.95834985]
[1733535832555,0.17519,3989.4,3989.3,0.95834985]
[1733535834149,0.4024,3990.0,3989.4,0.17519]
[1733535834345,0.4024,3990.0,3989.3,0.25034985]
[1733535834545,0.4024,3990.0,3988.7,3.2078]
[1733535834546,0.17522,3988.8,3988.7,3.2078]
[1733535835354,0.17523,3988.4,3988.3,3.2078]
[1733535836254,0.90432313,3988.6,3988.0,1.5027]
[1733535836446,0.17525,3988.1,3988.0,1.5027]
[1733535838253,0.17525,3988.1,3987.8,3.2078]
[1733535838254,0.17526,3987.9,3987.8,3.2078]
[1733535838554,0.393,3988.0,3987.0,1.2002]
[1733535838858,0.17529,3987.1,3987.0,1.2002]
[1733535843163,0.17529,3987.2,3987.0,1.2002]
[1733535843568,0.3999,3987.6,3987.0,1.37549]
[1733535843569,0.17528,3987.3,3987.0,1.37549]
[1733535843859,0.17529,3987.2,3987.0,1.2002]
[1733535844468,0.3999,3987.6,3987.0,1.2002]
[1733535844657,0.17529,3987.1,3987.0,1.2002]
[1733535844855,0.3999,3987.6,3987.0,1.2002]
[1733535845065,0.17529,3987.2,3987.0,1.2002]
[1733535845868,0.17526,3987.9,3987.4,0.17527]
[1733535846066,0.17527,3987.7,3987.4,0.17528]
[1733535846260,0.17527,3987.7,3987.3,3.2078]
[1733535846660,0.17527,3987.6,3987.4,0.17528]
[1733535847067,0.17527,3987.6,3987.3,3.2078]
[1733535847268,0.17528,3987.4,3987.3,3.2078]
[1733535848460,1.9600501,3988.2,3987.3,3.2078]
[1733535848661,0.17528,3987.4,3987.3,3.2078]
[1733535849168,0.17527,3987.5,3987.3,3.9158]
[1733535849571,0.17528,3987.4,3987.3,3.9158]
[1733535850158,0.17527,3987.6,3987.4,0.17527]
[1733535851764,0.17527,3987.7,3987.4,0.17528]
[1733535851972,0.17527,3987.7,3987.5,0.17527]
[1733535852965,0.17527,3987.7,3987.6,0.17527]
[1733535853464,0.4169,3988.1,3987.3,3.9158]
[1733535853768,0.17527,3987.5,3987.3,4.09108]
[1733535854763,0.17527,3987.5,3987.4,0.17528]
[1733535856473,0.17527,3987.6,3987.4,0.17528]
[1733535857471,0.17527,3987.6,3987.5,0.17527]
[1733535858266,0.17527,3987.7,3987.5,0.17527]
[1733535858469,0.17527,3987.7,3987.6,0.3951]
[1733535858869,0.17527,3987.7,3987.6,0.57037]
[1733535859369,0.17526,3987.9,3987.8,0.17526]
[1733535859864,0.17525,3988.0,3987.7,0.96076]
[1733535860067,0.17526,3987.9,3987.7,0.96076]
[1733535860365,0.17526,3987.8,3987.7,0.7855]
[1733535862380,0.17526,3987.8,3987.7,0.96077]
[1733535865778,0.90471934,3988.0,3987.7,0.7855]
[1733535865978,0.17526,3987.9,3987.8,0.17526]
[1733535866778,0.4169,3988.1,3987.7,0.7855]
[1733535867081,0.90471934,3988.3,3987.7,3.9933]
[1733535867283,0.17526,3987.9,3987.8,0.17526]
[1733535867576,0.17526,3988.0,3987.9,0.17525]
[1733535867980,0.17525,3988.1,3988.0,0.17525]
[1733535868379,0.90471934,3988.3,3987.9,0.708]
[1733535868676,0.17524,3988.2,3988.1,0.17524]
[1733535868876,3.2078,3988.9,3988.1,3.2078]
[1733535868877,0.90471934,3988.9,3988.1,3.2078]
[1733535869080,0.17523,3988.6,3988.5,0.17523]
[1733535869281,0.3812,3988.8,3988.3,0.708]
[1733535869478,0.17523,3988.5,3988.4,0.4124]
[1733535869776,0.17523,3988.5,3988.4,0.58763]
[1733535870281,0.17523,3988.6,3988.5,0.17523]
[1733535870485,0.17523,3988.5,3988.4,0.58763]
[1733535870783,0.17523,3988.6,3988.5,0.17523]
[1733535871678,0.3812,3988.8,3988.5,0.17523]
[1733535871980,0.17523,3988.6,3988.5,0.58413]
[1733535872182,0.3812,3988.8,3988.5,0.4089]
[1733535872590,0.17523,3988.6,3988.5,0.58413]
[1733535873377,0.17522,3988.7,3988.5,0.4089]
[1733535873574,0.17522,3988.7,3988.6,0.17522]
[1733535873776,0.55642,3988.8,3988.7,0.17522]
[1733535873983,0.17523,3988.7,3988.6,0.17522]
[1733535874181,0.3812,3988.8,3988.5,0.4089]
[1733535874379,0.17523,3988.7,3988.6,0.17522]
[1733535874875,0.17523,3988.7,3988.5,0.4089]
[1733535874876,0.3812,3988.8,3988.5,0.4089]
[1733535875179,2.9504959,3989.5,3988.6,0.90471934]
[1733535875380,0.4179,3989.4,3988.9,3.2078]
[1733535875578,0.90471934,3989.3,3989.0,1.1096]
[1733535875772,0.1752,3989.1,3989.0,0.708]
[1733535878481,0.1752,3989.1,3988.7,0.4016]
[1733535878482,0.90471934,3989.3,3988.7,0.4016]
[1733535878679,0.17521,3988.9,3988.8,0.88322]
[1733535880084,0.90471934,3989.3,3988.8,0.708]
[1733535880282,0.4179,3989.4,3989.1,0.1752]
[1733535880479,0.4179,3989.4,3988.9,4.11251934]
[1733535880683,0.1752,3989.1,3989.0,0.17521]
[1733535883085,0.1752,3989.3,3989.1,0.1752]
[1733535883879,0.1752,3989.3,3989.2,0.5874]
[1733535884685,0.17521,3989.3,3989.2,0.4122]
[1733535885881,0.59311,3989.4,3989.2,0.58741]
[1733535886885,0.59311,3989.4,3989.3,0.17521]
[1733535887380,0.17521,3989.3,3989.2,0.58741]
[1733535888790,0.17521,3989.3,3989.2,0.4122]
[1733535892891,3.12149769,3989.3,3989.2,0.4122]
[1733535893280,0.17521,3989.3,3989.2,0.4122]
[1733535894587,1.07992934,3989.3,3989.2,0.4122]
[1733535894886,0.17524,3988.6,3988.5,4.3247]
[1733535895187,0.17524,3988.6,3988.5,4.7079]
[1733535895396,0.17524,3988.6,3988.5,0.7921]
[1733535895590,0.17523,3988.9,3988.7,0.17524]
[1733535895784,0.17523,3988.9,3988.8,0.3865]
[1733535896386,6.15288084,3989.0,3988.5,0.7921]
[1733535896589,0.17524,3988.6,3988.5,0.7921]
[1733535898690,3.12032084,3988.6,3988.5,0.7921]
[1733535899182,0.17524,3988.6,3988.5,0.7921]
[1733535899384,0.17528,3987.8,3987.3,3.2078]
[1733535899592,0.1753,3987.4,3987.3,0.3853]
[1733535899794,0.1753,3987.4,3987.3,0.63574202]
[1733535900791,0.17529,3987.4,3987.3,0.63574202]
[1733535903395,0.4061,3987.8,3987.3,0.63574202]
[1733535903605,0.17529,3987.4,3987.3,0.63574202]
[1733535903794,0.4061,3987.8,3987.3,0.63574202]
[1733535904297,0.17529,3987.4,3987.3,0.63574202]
[1733535905297,0.4061,3987.8,3987.3,0.63574202]
[1733535905592,0.17529,3987.4,3987.3,0.63574202]
[1733535908599,0.4061,3987.8,3987.3,0.63574202]
[1733535908806,0.17529,3987.5,3987.3,0.63574202]
[1733535909799,0.17529,3987.4,3987.3,0.25044202]
[1733535910802,0.90471934,3987.6,3987.3,0.42574202]
[1733535910803,0.17529,3987.5,3987.3,0.42574202]
[1733535912205,0.17529,3987.4,3987.3,0.42574202]
[1733535912894,0.90471934,3987.4,3987.3,0.1753]
[1733535913097,5.90471934,3987.4,3986.5,0.25044202]
[1733535913304,0.17533,3986.6,3986.5,0.25044202]
[1733535914003,0.90471934,3986.7,3986.5,0.42577202]
[1733535914208,1.69381934,3987.0,3986.5,0.25044202]
[1733535914506,0.17533,3986.6,3986.5,0.25044202]
[1733535916001,3.2078,3987.1,3986.5,1.86216136]
[1733535916197,0.1753,3987.2,3987.1,0.1753]
[1733535916401,0.17533,3986.6,3986.5,0.25044202]
[1733535917699,0.17534,3986.3,3986.2,0.7987]
[1733535918610,0.17534,3986.3,3986.2,0.4025]
[1733535919212,0.17534,3986.3,3985.9,4.28787934]
[1733535919213,0.90471934,3986.3,3985.9,3.2078]
[1733535919507,0.4151,3986.2,3985.7,0.95744202]
[1733535919711,0.17536,3985.8,3985.7,0.95744202]
[1733535921105,0.4127,3985.9,3985.8,0.17536]
[1733535921306,0.17533,3986.6,3985.7,5.06996136]
[1733535921507,3.2078,3986.8,3986.0,0.90471934]
[1733535921711,3.2078,3986.8,3986.7,0.17532]
[1733535921915,0.17531,3987.1,3986.7,0.17532]
[1733535922221,1.49271934,3987.3,3987.1,0.1753]
[1733535922409,0.17531,3987.2,3986.9,0.17531]
[1733535922607,0.17531,3987.1,3986.9,0.17531]
[1733535922911,0.90471934,3987.0,3986.9,0.17531]
[1733535923116,0.90471934,3987.0,3986.8,1.1851]
[1733535923810,0.17532,3986.9,3986.8,1.1851]
[1733535924013,1.08002934,3987.0,3986.8,1.36042]
[1733535924612,0.4127,3987.3,3986.8,1.36042]
[1733535924815,0.17531,3987.0,3986.8,1.1851]
[1733535925016,0.17531,3987.0,3986.9,0.17532]
[1733535925514,0.4127,3987.3,3986.8,1.1851]
[1733535925715,0.17531,3987.2,3987.0,0.17531]
[1733535925912,0.4127,3987.3,3986.8,1.1851]
[1733535926120,0.17531,3987.1,3986.9,0.17531]
[1733535926806,0.1753,3987.2,3987.0,0.17531]
[1733535927006,0.4127,3987.3,3986.8,1.1851]
[1733535927319,0.1753,3987.2,3987.0,0.17531]
[1733535927520,0.1753,3987.2,3987.1,0.17531]
[1733535927816,0.17531,3987.2,3987.0,0.17531]
[1733535928019,0.17531,3987.1,3986.9,0.17531]
[1733535928220,0.1753,3987.2,3987.0,0.17531]
[1733535928514,0.8266,3987.3,3987.2,0.1753]
[1733535928515,1.0019,3987.3,3987.2,0.1753]
[1733535928714,0.1753,3987.2,3986.8,1.8921]
[1733535929113,0.1753,3987.2,3987.0,0.17531]
[1733535929312,0.17531,3987.1,3986.9,0.17531]
[1733535929720,0.4127,3987.3,3986.8,2.09129474]
[1733535929912,0.1753,3987.3,3987.1,0.1753]
[1733535930117,0.17529,3987.4,3986.9,0.17532]
[1733535930415,0.17529,3987.4,3986.8,2.09129474]
[1733535930416,3.2078,3987.6,3987.3,0.1753]
[1733535930612,0.17529,3987.5,3987.4,0.3862]
[1733535931217,3.2078,3987.6,3987.5,0.17529]
[1733535931421,3.2078,3987.6,3987.5,0.3993]
[1733535931422,3.38308,3987.6,3987.5,0.3993]
[1733535931724,3.2078,3987.6,3986.8,1.29399474]
[1733535932017,0.17531,3987.1,3986.9,0.96081]
[1733535933315,0.17531,3987.1,3987.0,0.17531]
[1733535933813,3.2078,3987.6,3987.0,0.17531]
[1733535934014,3.2078,3987.6,3986.9,0.7855]
[1733535934215,3.2078,3987.6,3987.0,0.17531]
[1733535934423,0.1753,3987.2,3987.0,0.17531]
[1733535934724,3.2078,3987.6,3987.0,0.17531]
[1733535934925,0.17531,3987.1,3987.0,0.17531]
[1733535935516,3.2078,3987.6,3986.9,0.7855]
[1733535935726,0.3935,3987.8,3987.1,3.2078]
[1733535936030,3.38307,3988.0,3987.8,0.17527]
[1733535936324,3.38307,3988.0,3987.9,0.7817]
[1733535936518,3.38307,3988.0,3987.9,1.1744]
[1733535936519,3.2078,3988.0,3987.9,1.1744]
[1733535936726,3.2078,3988.0,3987.9,1.34967]
[1733535937023,0.3772,3988.5,3987.9,1.1744]
[1733535937328,0.17525,3988.3,3988.2,0.17526]
[1733535937529,0.56475,3988.4,3988.3,0.17525]
[1733535937821,0.17527,3988.0,3987.9,0.97996036]
[1733535938030,0.17527,3988.0,3987.9,0.58476036]
[1733535938528,0.17527,3988.0,3987.9,0.3865]
[1733535939730,0.17526,3988.2,3987.9,0.56177]
[1733535939929,0.17527,3988.1,3987.9,0.3865]
[1733535940222,0.3908,3988.3,3987.9,0.7932]
[1733535940529,0.17526,3988.1,3988.0,0.17527]
[1733535940730,0.17526,3988.1,3987.9,0.7932]
[1733535940925,0.17526,3988.1,3987.9,0.96847]
[1733535941123,0.17526,3988.1,3988.0,0.17527]
[1733535942022,0.3908,3988.3,3987.9,0.7932]
[1733535942225,0.17526,3988.2,3988.1,0.17526]
[1733535942826,0.17527,3988.1,3988.0,0.17527]
[1733535943329,0.3908,3988.3,3988.1,0.17526]
[1733535943330,0.17526,3988.2,3988.1,0.17526]
[1733535943931,0.17526,3988.2,3987.9,0.7932]
[1733535944125,0.3908,3988.3,3988.2,0.17526]
[1733535944320,0.3908,3988.3,3987.9,0.7932]
[1733535944523,0.17526,3988.2,3988.1,0.17526]
[1733535944725,0.17526,3988.2,3988.0,0.17527]
[1733535945229,0.17526,3988.1,3988.0,0.17527]
[1733535945433,0.17526,3988.2,3988.0,0.17527]
[1733535945828,0.3908,3988.3,3988.0,0.17527]
[1733535946025,0.17526,3988.1,3988.0,0.17527]
[1733535946624,0.17526,3988.2,3988.0,0.17527]
[1733535946820,0.17526,3988.1,3988.0,0.17527]
[1733535947338,0.3908,3988.3,3988.0,0.17527]
[1733535947526,0.17526,3988.2,3988.0,0.17527]
[1733535948037,0.17526,3988.2,3987.9,1.04371794]
[1733535948228,0.3908,3988.3,3987.9,1.04371794]
[1733535948423,0.56606,3988.3,3988.1,0.17526]
[1733535948624,0.3908,3988.3,3988.2,0.17526]
[1733535948827,0.3895,3988.4,3988.3,0.17525]
[1733535950133,0.3895,3988.4,3987.9,1.04371794]
[1733535950330,0.3895,3988.4,3988.3,0.17525]
[1733535950535,0.17526,3988.3,3987.9,1.04371794]
[1733535950832,0.17526,3988.3,3988.2,0.17526]
[1733535951230,0.56475,3988.4,3988.3,0.17525]
[1733535951434,0.3895,3988.4,3988.3,0.17525]
[1733535953929,0.17524,3988.6,3988.2,0.19862016]
[1733535954137,0.17524,3988.6,3988.5,0.17525]
[1733535955133,0.3996,3988.9,3987.9,1.2467175]
[1733535955437,0.17525,3988.5,3988.4,0.17525]
[1733535957429,2.17525,3988.5,3988.4,0.17525]
[1733535960741,2.0,3988.5,3988.4,0.17525]
[1733535962438,2.17524,3988.5,3988.4,0.17525]
[1733535963141,2.0,3988.5,3988.4,0.17525]
[1733535963337,2.0,3988.5,3988.4,0.57325]
[1733535967143,2.0,3988.5,3988.4,1.27925]
[1733535970349,2.0,3988.5,3988.4,2.18368465]
[1733535970646,3.2078,3989.8,3989.7,0.17519]
[1733535970846,3.92838359,3990.5,3988.4,7.00843465]
[1733535970847,0.3856,3990.0,3989.4,1.61043465]
[1733535971041,3.2078,3990.5,3990.4,0.17516]
[1733535971240,0.90443465,3990.4,3989.7,1.61043465]
[1733535971437,0.90443465,3990.4,3990.3,0.17516]
[1733535972046,1.29663465,3990.4,3990.3,0.17516]
[1733535972449,0.3922,3990.4,3990.3,0.17516]
[1733535974353,0.3922,3990.4,3989.8,0.4006]
[1733535974650,0.17517,3990.2,3989.9,0.17518]
[1733535975246,0.3922,3990.4,3989.5,0.7981]
[1733535975443,0.17521,3989.3,3989.0,1.0908]
[1733535975640,3.2078,3989.1,3989.0,0.706]
[1733535975844,0.17523,3988.8,3988.5,0.88124]
[1733535976245,0.17524,3988.7,3988.5,0.706]
[1733535976448,3.2078,3988.9,3988.2,3.2078]
[1733535976647,3.2078,3988.9,3988.3,0.706]
[1733535976849,0.17525,3988.5,3988.3,0.706]
[1733535977053,0.17525,3988.5,3988.3,0.88125]
[1733535977253,3.2078,3988.9,3988.3,0.706]
[1733535977453,0.17523,3988.7,3988.4,0.17524]
[1733535977754,0.17524,3988.6,3988.4,0.17524]
[1733535978149,3.2078,3988.9,3988.3,0.706]
[1733535978348,0.17524,3988.6,3988.3,0.88125]
[1733535978549,3.2078,3988.9,3988.2,3.2078]
[1733535978754,0.17524,3988.5,3988.3,0.706]
[1733535979555,0.3925,3989.2,3988.3,0.83136669]
[1733535979850,0.17525,3988.5,3988.3,0.83136669]
[1733535980045,0.17525,3988.5,3988.4,0.25039311]
[1733535984852,0.57525,3988.5,3988.4,0.25039311]
[1733535985451,0.4,3988.5,3987.3,3.2078]
[1733535985650,0.17528,3987.7,3987.4,0.706]
[1733535987658,0.17529,3987.4,3987.3,1.2055]
[1733535987851,0.17529,3987.4,3987.3,1.9115]
[1733535988254,0.17528,3987.6,3987.4,0.17529]
[1733535988557,0.17528,3987.7,3987.5,0.17529]
[1733535988955,3.38307,3987.8,3987.6,0.17528]
[1733535989463,3.38307,3987.8,3987.3,2.16205058]
[1733535989859,3.38307,3987.8,3987.6,0.17528]
[1733535990158,3.2078,3987.8,3987.3,2.16205058]
[1733535990457,0.17527,3987.9,3987.7,0.17528]
[1733535990957,0.17527,3987.9,3987.4,3.2078]
[1733535991259,0.17527,3987.9,3987.7,0.17528]
[1733535991456,3.2078,3988.7,3987.6,1.95766658]
[1733535991660,1.95766658,3989.0,3988.2,3.2078]
[1733535991960,0.17524,3988.7,3988.5,0.17524]
[1733535992156,0.17524,3988.7,3988.6,0.4141]
[1733535994163,0.17523,3988.9,3988.6,0.4141]
[1733535994455,0.17523,3988.7,3988.6,0.4141]
[1733535996464,3.2078,3989.1,3988.6,0.4141]
[1733535996666,0.17523,3988.8,3988.6,0.58934]
[1733535996962,0.17523,3988.7,3988.6,0.4141]
[1733535997759,0.17522,3989.0,3988.6,0.58934]
[1733535997968,0.17523,3988.8,3988.6,0.58934]
[1733535998160,0.17523,3988.9,3988.7,0.17523]
[1733535998366,3.2078,3989.1,3988.7,0.17523]
[1733535998570,3.2078,3989.1,3988.6,0.4141]
[1733535998571,0.43808,3988.8,3987.8,3.45827213]
[1733535998871,1.95766658,3988.3,3987.8,3.45827213]
[1733535999665,0.17527,3988.0,3987.8,3.63354213]
[1733536000060,1.95766658,3988.3,3987.8,3.63354213]
[1733536000768,0.17527,3988.0,3987.8,3.63354213]
[1733536001065,0.17527,3987.9,3987.8,4.16427213]
[1733536002763,0.17527,3987.9,3987.8,4.33954213]
[1733536002959,0.17527,3987.9,3987.8,4.16427213]
[1733536003364,1.95766658,3988.3,3987.8,1.13174213]
[1733536003765,0.17527,3988.0,3987.8,1.13174213]
[1733536003965,1.95766658,3988.3,3987.8,1.13174213]
[1733536004158,0.17527,3987.9,3987.8,1.13174213]
[1733536004569,1.95766658,3988.3,3987.8,1.13174213]
[1733536004766,0.17527,3988.0,3987.8,1.13174213]
[1733536005072,0.17526,3988.1,3987.9,0.17527]
[1733536005365,0.17527,3988.0,3987.8,0.95647213]
[1733536005572,0.17527,3988.0,3987.9,0.17527]
[1733536005768,0.17525,3988.3,3987.9,0.17527]
[1733536005966,0.17526,3988.0,3987.9,0.17527]
[1733536006467,0.17526,3988.0,3987.8,0.95647213]
[1733536006667,0.17526,3988.0,3987.9,0.17527]
[1733536007365,0.17525,3988.3,3987.8,0.95647213]
[1733536007565,0.17527,3988.0,3987.8,1.13174213]
[1733536008873,0.17527,3987.9,3987.8,1.13174213]
[1733536009261,0.17527,3987.9,3987.8,0.95647213]
[1733536009462,0.17527,3987.9,3987.8,0.25047213]
[1733536010371,0.17529,3987.5,3987.4,3.5973]
[1733536010569,0.17529,3987.5,3987.4,0.3895]
[1733536011867,0.17529,3987.5,3987.4,0.64001292]
[1733536021265,3.2078,3987.6,3987.4,0.64001292]
[1733536021474,3.38308,3987.6,3987.4,0.64001292]
[1733536021674,3.38308,3987.6,3987.4,0.81530292]
[1733536021884,0.17528,3987.6,3987.5,0.17529]
[1733536022177,3.2078,3988.0,3987.5,0.17529]
[1733536022178,0.17528,3987.7,3987.5,0.17529]
[1733536022374,0.17528,3987.8,3987.6,0.17528]
[1733536022571,0.17528,3987.7,3987.6,0.17528]
[1733536024279,3.2078,3988.0,3987.4,0.83955938]
[1733536024680,0.17527,3987.8,3987.7,0.17528]
[1733536026474,3.2078,3988.0,3987.7,0.17528]
[1733536026677,3.2078,3988.0,3987.4,0.83955938]
[1733536026878,0.17528,3987.6,3987.5,0.17529]
[1733536027078,0.17528,3987.7,3987.6,0.17528]
[1733536027379,3.2078,3988.0,3987.4,0.83955938]
[1733536027581,0.17528,3987.8,3987.5,0.17529]
[1733536027780,0.17527,3987.9,3987.6,0.17528]